fUSD/lending_fUSD_20250221
["ID","MTS","AMOUNT","RATE_DAILY","PERIOD"]
[353975732,1740171065966,-500.0,0.00011696,2]
[353975733,1740171065975,-500.0,0.00011696,2]
[353975734,1740171065985,-774.49,0.00011696,2]
[353975735,1740171065994,-557.01,0.00011696,2]
[353975736,1740171066004,-601.4,0.00011696,2]
[353975737,1740171066015,-584.44,0.00011696,2]
[353975738,1740171066025,-739.21,0.00011696,2]
[353975739,1740171066034,-1290.21,0.00011696,2]
[353975740,1740171066043,-500.0,0.00011696,2]
[353975741,1740171066054,-500.0,0.00011696,2]
[353975742,1740171066063,-911.81,0.00011696,2]
[353975743,1740171066072,-500.0,0.00011696,2]
[353975744,1740171066082,-304.70415988,0.00011696,2]
[353975745,1740171066092,-721.51,0.00011696,2]
[353975746,1740171066101,-500.0,0.00011696,2]
[353975747,1740171066110,-1006.19,0.00011696,2]
[353975748,1740171066119,-567.1,0.00011696,2]
[353975749,1740171066128,-1021.87,0.00011696,2]
[353975750,1740171066137,-641.22,0.00011696,2]
[353975751,1740171066146,-500.0,0.00011697,2]
[353975752,1740171066155,-500.0,0.00011697,2]
[353975753,1740171066164,-500.0,0.00011697,2]
[353975754,1740171066173,-515.4,0.00011697,2]
[353975755,1740171066182,-545.11,0.00011697,2]
[353975756,1740171066191,-500.0,0.00011697,2]
[353975757,1740171066200,-628.25,0.00011697,2]
[353975758,1740171066209,-500.0,0.00011697,2]
[353975759,1740171066218,-500.0,0.00011697,2]
[353975760,1740171066227,-500.0,0.00011697,2]
[353975761,1740171066236,-1213.59,0.00011697,2]
[353975762,1740171066246,-500.0,0.00011697,2]
[353975763,1740171066255,-1530.25,0.00011697,2]
[353975764,1740171066265,-1165.42,0.00011697,2]
[353975765,1740171066274,-565.31265828,0.00011697,2]
[353975766,1740171066283,-500.0,0.00011697,2]
[353975767,1740171066291,-1202.17,0.00011697,2]
[353975768,1740171066300,-980.68,0.00011697,2]
[353975769,1740171066309,-388.485905,0.00011697,2]
[353975770,1740171066319,-787.96,0.00011697,2]
[353975771,1740171066328,-715.35,0.00011697,2]
[353975772,1740171066337,-4732.39,0.00011697,2]
[353975773,1740171066346,-825.04,0.00011697,2]
[353975774,1740171066355,-500.0,0.00011697,2]
[353975775,1740171066364,-781.86,0.00011697,2]
[353975776,1740171066373,-456.75589,0.00011697,2]
[353975777,1740171066382,-265.03739567,0.00011697,2]
[353975778,1740171066391,-968.39,0.00011697,2]
[353975779,1740171066401,-500.0,0.00011697,2]
[353975780,1740171066410,-1024.15,0.00011697,2]
[353975781,1740171066419,-500.0,0.00011697,2]
[353975782,1740171066428,-983.5,0.00011697,2]
[353975783,1740171066437,-641.54,0.00011697,2]
[353975784,1740171066449,-521.8,0.00011697,2]
[353975785,1740171066459,-922.66,0.00011697,2]
[353975786,1740171066468,-1051.72,0.00011697,2]
[353975787,1740171066477,-500.0,0.00011697,2]
[353975788,1740171066486,-960.42,0.00011697,2]
[353975789,1740171066497,-909.2,0.00011697,2]
[353975790,1740171066506,-699.01,0.00011697,2]
[353975791,1740171066515,-1134.55,0.00011697,2]
[353975792,1740171066525,-2042.37,0.00011697,2]
[353975793,1740171066535,-500.0,0.00011697,2]
[353975794,1740171066545,-770.62,0.00011697,2]
[353975795,1740171066555,-833.6,0.00011697,2]
[353975796,1740171066564,-500.0,0.00011697,2]
[353975797,1740171066574,-691.53,0.00011697,2]
[353975798,1740171066584,-1037.34,0.00011697,2]
[353975799,1740171066594,-500.0,0.00011697,2]
[353975800,1740171066603,-500.0,0.00011697,2]
[353975801,1740171066613,-698.57,0.00011697,2]
[353975802,1740171066622,-1368.34,0.00011697,2]
[353975803,1740171066632,-500.0,0.00011697,2]
[353975804,1740171066642,-697.57,0.00011697,2]
[353975805,1740171066651,-500.0,0.00011697,2]
[353975806,1740171066661,-1063.71,0.00011697,2]
[353975807,1740171066671,-1210.76,0.00011697,2]
[353975808,1740171066682,-916.99,0.00011697,2]
[353975809,1740171066691,-737.32,0.00011697,2]
[353975810,1740171066700,-500.0,0.00011697,2]
[353975811,1740171066710,-1114.97,0.00011697,2]
[353975812,1740171066719,-500.0,0.00011697,2]
[353975813,1740171066729,-841.42,0.00011697,2]
[353975814,1740171066738,-500.0,0.00011697,2]
[353975815,1740171066752,-2085.19,0.00011697,2]
[353975816,1740171066762,-500.0,0.00011697,2]
[353975817,1740171066772,-1025.17,0.00011697,2]
[353975818,1740171066782,-500.0,0.00011697,2]
[353975819,1740171066791,-1253.06,0.00011697,2]
[353975820,1740171066800,-500.0,0.00011697,2]
[353975821,1740171066810,-725.46,0.00011697,2]
[353975822,1740171066820,-828.59,0.00011697,2]
[353975823,1740171066829,-1071.25,0.00011697,2]
[353975824,1740171066839,-663.69,0.00011697,2]
[353975825,1740171066848,-1377.64,0.00011697,2]
[353975826,1740171066857,-500.0,0.00011697,2]
[353975827,1740171066867,-500.0,0.00011697,2]
[353975828,1740171066877,-540.68,0.00011697,2]
[353975829,1740171066886,-467.48,0.00011697,2]
[353975830,1740171066895,-500.0,0.00011697,2]
[353975831,1740171066904,-500.0,0.00011698,2]
[353975832,1740171066914,-500.0,0.00011698,2]
[353975833,1740171066923,-948.42,0.00011698,2]
[353975834,1740171066932,-500.0,0.00011698,2]
[353975835,1740171066941,-270.96864519,0.00011698,2]
[353975836,1740171066950,-500.0,0.00011698,2]
[353975837,1740171066959,-548.39,0.00011698,2]
[353975838,1740171066968,-500.0,0.00011698,2]
[353975839,1740171066977,-500.0,0.00011698,2]
[353975840,1740171066987,-500.0,0.00011698,2]
[353975841,1740171066998,-500.0,0.00011698,2]
[353975842,1740171067009,-500.0,0.00011698,2]
[353975843,1740171067021,-500.0,0.00011698,2]
[353975844,1740171067031,-500.0,0.00011698,2]
[353975845,1740171067040,-500.0,0.00011698,2]
[353975846,1740171067050,-500.0,0.00011698,2]
[353975847,1740171067059,-531.15,0.00011698,2]
[353975848,1740171067068,-500.0,0.00011698,2]
[353975849,1740171067077,-500.0,0.00011698,2]
[353975850,1740171067086,-509.14,0.00011698,2]
[353975851,1740171067095,-323.28634301,0.00011698,2]
[353975852,1740171067104,-219.28,0.00011698,2]
[353975853,1740171067113,-532.03,0.00011698,2]
[353975854,1740171067123,-564.59,0.00011698,2]
[353975855,1740171067132,-500.0,0.00011698,2]
[353975856,1740171067141,-895.54,0.00011698,2]
[353975857,1740171067150,-500.0,0.00011698,2]
[353975858,1740171067159,-500.0,0.00011698,2]
[353975859,1740171067169,-723.86,0.00011698,2]
[353975860,1740171067179,-500.0,0.00011698,2]
[353975861,1740171067191,-500.0,0.00011698,2]
[353975862,1740171067200,-569.43,0.00011698,2]
[353975863,1740171067209,-721.9,0.00011698,2]
[353975864,1740171067217,-604.3,0.00011698,2]
[353975865,1740171067227,-500.0,0.00011698,2]
[353975866,1740171067236,-796.7,0.00011698,2]
[353975867,1740171067248,-500.0,0.00011698,2]
[353975868,1740171067258,-500.0,0.00011698,2]
[353975869,1740171067268,-570.06,0.00011698,2]
[353975870,1740171067277,-548.12,0.00011698,2]
[353975871,1740171067286,-547.69,0.00011698,2]
[353975872,1740171067295,-500.0,0.00011698,2]
[353975873,1740171067305,-682.11,0.00011698,2]
[353975874,1740171067314,-500.0,0.00011698,2]
[353975875,1740171067323,-530.17,0.00011698,2]
[353975876,1740171067333,-500.0,0.00011698,2]
[353975877,1740171067342,-595.9,0.00011698,2]
[353975878,1740171067351,-500.0,0.00011698,2]
[353975879,1740171067360,-608.63,0.00011698,2]
[353975880,1740171067369,-500.0,0.00011698,2]
[353975881,1740171067378,-500.0,0.00011698,2]
[353975882,1740171067387,-500.0,0.00011698,2]
[353975883,1740171067397,-528.72,0.00011698,2]
[353975884,1740171067406,-500.0,0.00011698,2]
[353975885,1740171067415,-500.0,0.00011698,2]
[353975886,1740171067424,-500.0,0.00011698,2]
[353975887,1740171067433,-418.45426432,0.00011698,2]
[353975888,1740171067442,-500.0,0.00011698,2]
[353975889,1740171067452,-596.32,0.00011698,2]
[353975890,1740171067461,-500.0,0.00011698,2]
[353975891,1740171067471,-608.08,0.00011698,2]
[353975892,1740171067479,-500.0,0.00011698,2]
[353975893,1740171067489,-500.0,0.00011698,2]
[353975894,1740171067500,-500.0,0.00011698,2]
[353975895,1740171067509,-500.0,0.00011698,2]
[353975896,1740171067518,-725.21,0.00011698,2]
[353975897,1740171067527,-500.0,0.00011698,2]
[353975898,1740171067536,-736.61,0.00011698,2]
[353975899,1740171067545,-500.0,0.00011698,2]
[353975900,1740171067555,-500.0,0.00011698,2]
[353975901,1740171067564,-500.0,0.00011698,2]
[353975902,1740171067573,-500.0,0.00011698,2]
[353975903,1740171067582,-595.1,0.00011698,2]
[353975904,1740171067591,-500.0,0.00011698,2]
[353975905,1740171067600,-500.0,0.00011698,2]
[353975906,1740171067609,-597.25,0.00011698,2]
[353975907,1740171067618,-500.0,0.00011698,2]
[353975908,1740171067628,-553.6118387,0.00011698,2]
[353975909,1740171067637,-789.82,0.00011698,2]
[353975910,1740171067646,-500.0,0.00011698,2]
[353975911,1740171067655,-820.97,0.00011698,2]
[353975912,1740171067664,-500.0,0.00011698,2]
[353975913,1740171067673,-500.0,0.00011698,2]
[353975914,1740171067683,-638.4,0.00011698,2]
[353975915,1740171067693,-500.0,0.00011698,2]
[353975916,1740171067702,-500.0,0.00011698,2]
[353975917,1740171067712,-602.07,0.00011698,2]
[353975918,1740171067721,-534.75,0.00011698,2]
[353975919,1740171067731,-591.74,0.00011698,2]
[353975920,1740171067744,-556.78,0.00011698,2]
[353975921,1740171067754,-594.45,0.00011698,2]
[353975922,1740171067763,-543.99,0.00011698,2]
[353975923,1740171067773,-500.0,0.00011698,2]
[353975924,1740171067783,-500.0,0.00011698,2]
[353975925,1740171067794,-500.0,0.00011698,2]
[353975926,1740171067804,-561.34,0.00011698,2]
[353975927,1740171067813,-656.67,0.00011698,2]
[353975928,1740171067823,-500.0,0.00011698,2]
[353975929,1740171067832,-510.74,0.00011698,2]
[353975930,1740171067842,-500.0,0.00011698,2]
[353975931,1740171067851,-570.21,0.00011698,2]
[353975932,1740171067860,-500.0,0.00011698,2]
[353975933,1740171067869,-737.42,0.00011698,2]
[353975934,1740171067879,-500.0,0.00011698,2]
[353975935,1740171067888,-576.65,0.00011698,2]
[353975936,1740171067897,-500.0,0.00011698,2]
[353975937,1740171067908,-717.99,0.00011698,2]
[353975938,1740171067917,-500.0,0.00011698,2]
[353975939,1740171067927,-758.02,0.00011698,2]
[353975940,1740171067937,-500.0,0.00011698,2]
[353975941,1740171067947,-500.0,0.00011698,2]
[353975942,1740171067956,-500.0,0.00011698,2]
[353975943,1740171067966,-500.0,0.00011698,2]
[353975944,1740171067976,-516.42,0.00011698,2]
[353975945,1740171067985,-500.0,0.00011698,2]
[353975946,1740171067998,-500.0,0.00011698,2]
[353975947,1740171068008,-628.36,0.00011698,2]
[353975948,1740171068021,-500.0,0.00011698,2]
[353975949,1740171068030,-500.0,0.00011698,2]
[353975950,1740171068040,-500.0,0.00011698,2]
[353975951,1740171068050,-602.18,0.00011698,2]
[353975952,1740171068059,-500.0,0.00011698,2]
[353975953,1740171068069,-549.57,0.00011698,2]
[353975954,1740171068078,-594.93,0.00011698,2]
[353975955,1740171068090,-500.0,0.00011698,2]
[353975956,1740171068100,-510.35,0.00011698,2]
[353975957,1740171068109,-500.0,0.00011698,2]
[353975958,1740171068119,-828.44,0.00011698,2]
[353975959,1740171068128,-500.0,0.00011698,2]
[353975960,1740171068137,-500.0,0.00011698,2]
[353975961,1740171068146,-999.93,0.00011698,2]
[353975962,1740171068155,-529.44,0.00011698,2]
[353975963,1740171068165,-514.03,0.00011698,2]
[353975964,1740171068174,-500.0,0.00011698,2]
[353975965,1740171068183,-872.75,0.00011698,2]
[353975966,1740171068192,-925.13,0.00011698,2]
[353975967,1740171068202,-664.18,0.00011698,2]
[353975968,1740171068211,-1061.9,0.00011698,2]
[353975969,1740171068220,-500.0,0.00011698,2]
[353975970,1740171068230,-1366.7,0.00011698,2]
[353975971,1740171068240,-643.85,0.00011698,2]
[353975972,1740171068253,-1157.67,0.00011698,2]
[353975973,1740171068262,-500.0,0.00011698,2]
[353975974,1740171068271,-728.91,0.00011698,2]
[353975975,1740171068280,-731.54348616,0.00011698,2]
[353975976,1740171068546,-181.75651384,0.00011698,2]
[353975977,1740171068555,-564.58377102,0.00011698,2]
[353975978,1740171068565,-586.15,0.00011698,2]
[353975979,1740171068574,-500.0,0.00011698,2]
[353975980,1740171068584,-997.55,0.00011698,2]
[353975981,1740171068593,-500.0,0.00011698,2]
[353975982,1740171068602,-791.3,0.00011698,2]
[353975983,1740171068611,-632.04,0.00011698,2]
[353975984,1740171068621,-693.28,0.00011698,2]
[353975985,1740171068630,-500.0,0.00011698,2]
[353975986,1740171068639,-500.0,0.00011698,2]
[353975987,1740171068649,-818.59,0.00011698,2]
[353975988,1740171068658,-500.0,0.00011698,2]
[353975989,1740171068671,-703.51,0.00011698,2]
[353975990,1740171068681,-592.44,0.00011698,2]
[353975991,1740171068691,-500.0,0.00011698,2]
[353975992,1740171068700,-500.0,0.00011698,2]
[353975993,1740171068710,-500.0,0.00011698,2]
[353975994,1740171068720,-571.44,0.00011698,2]
[353975995,1740171068730,-500.0,0.00011698,2]
[353975996,1740171068740,-500.0,0.00011698,2]
[353975997,1740171068751,-500.0,0.00011698,2]
[353975998,1740171068761,-838.19,0.00011698,2]
[353975999,1740171068771,-720.06,0.00011698,2]
[353976000,1740171068781,-500.0,0.00011698,2]
[353976001,1740171068791,-931.04,0.00011698,2]
[353976002,1740171068800,-500.0,0.00011698,2]
[353976003,1740171068810,-500.0,0.00011698,2]
[353976004,1740171068820,-500.0,0.00011698,2]
[353976005,1740171068830,-1272.71,0.00011698,2]
[353976006,1740171068840,-508.71,0.00011698,2]
[353976007,1740171068850,-1189.40530246,0.00011705,2]
[353976008,1740171068859,-1362.23696,0.00011706,2]
[353976009,1740171068868,-150.0,0.00011753,2]
[353976010,1740171068878,-150.0,0.00011753,2]
[353976011,1740171068887,-556.26,0.00011759,2]
[353976012,1740171068896,-278.13,0.00011759,2]
[353976013,1740171068905,-278.13,0.00011759,2]
[353976014,1740171068915,-278.13,0.00011759,2]
[353976015,1740171068924,-278.13,0.00011759,2]
[353976016,1740171068933,-278.13,0.00011759,2]
[353976017,1740171068943,-278.13,0.00011759,2]
[353976018,1740171068952,-278.13,0.00011759,2]
[353976019,1740171068962,-278.13,0.00011759,2]
[353976020,1740171068971,-278.13,0.00011759,2]
[353976021,1740171068981,-278.13,0.00011759,2]
[353976022,1740171068990,-278.13,0.00011759,2]
[353976023,1740171069001,-278.13,0.00011759,2]
[353976024,1740171069012,-278.13,0.00011759,2]
[353976025,1740171069024,-278.13,0.00011759,2]
[353976026,1740171069034,-278.13,0.00011759,2]
[353976027,1740171069043,-278.13,0.00011759,2]
[353976028,1740171069053,-278.13,0.00011759,2]
[353976029,1740171069063,-278.13,0.00011759,2]
[353976030,1740171069072,-278.13,0.00011759,2]
[353976031,1740171069082,-278.13,0.00011759,2]
[353976032,1740171069091,-278.13,0.00011759,2]
[353976033,1740171069102,-278.13,0.00011759,2]
[353976034,1740171069112,-278.13,0.00011759,2]
[353976035,1740171069122,-278.13,0.00011759,2]
[353976036,1740171069132,-1444.42121795,0.0001176,2]
[353976037,1740171069591,-500.0,0.00010958,2]
[353976038,1740171069600,-22.01898272,0.00011039,2]
[353976039,1740171069620,-477.98101728,0.00011039,2]
[353976040,1740171069630,-471.66898272,0.00011039,2]
[353976041,1740171069641,-28.33101728,0.00011039,2]
[353976042,1740171069651,-500.0,0.00011039,2]
[353976043,1740171069660,-500.0,0.00011039,2]
[353976044,1740171069670,-504.68851397,0.0001104,2]
[353976045,1740171069679,-500.0,0.0001104,2]
[353976046,1740171069689,-500.0,0.00011041,2]
[353976047,1740171069698,-500.0,0.0001112,2]
[353976048,1740171069708,-535.14,0.00011121,2]
[353976049,1740171069717,-500.0,0.00011121,2]
[353976050,1740171069727,-500.0,0.00011123,2]
[353976051,1740171069736,-500.0,0.00011203,2]
[353976052,1740171069747,-500.0,0.00011205,2]
[353976053,1740171069756,-500.0,0.00011285,2]
[353976054,1740171069765,-500.0,0.00011287,2]
[353976055,1740171069775,-500.0,0.00011531,2]
[353976056,1740171069785,-500.0,0.00011613,2]
[353976057,1740171069795,-312.26,0.00011696,2]
[353976058,1740171069805,-2077.20219664,0.0001176,2]
[353976059,1740171069816,-392.80161118,0.00011773,2]
[353976060,1740171069826,-632.53,0.00011778,2]
[353976061,1740171069835,-838.98,0.00011778,2]
[353976062,1740171069845,-500.0,0.00011778,2]
[353976063,1740171069855,-500.0,0.00011778,2]
[353976064,1740171069864,-649.17,0.00011778,2]
[353976065,1740171069874,-609.92,0.00011778,2]
[353976066,1740171069884,-500.0,0.00011778,2]
[353976067,1740171069894,-734.31,0.00011778,2]
[353976068,1740171069903,-903.74,0.00011778,2]
[353976069,1740171069913,-500.0,0.00011778,2]
[353976070,1740171069923,-774.49,0.00011778,2]
[353976071,1740171069932,-557.01,0.00011778,2]
[353976072,1740171069942,-601.4,0.00011778,2]
[353976073,1740171069952,-584.44,0.00011778,2]
[353976074,1740171069961,-739.21,0.00011778,2]
[353976075,1740171069971,-1290.21,0.00011778,2]
[353976076,1740171069980,-500.0,0.00011778,2]
[353976077,1740171069990,-500.0,0.00011778,2]
[353976078,1740171070000,-911.81,0.00011778,2]
[353976079,1740171070014,-721.51,0.00011778,2]
[353976080,1740171070024,-500.0,0.00011778,2]
[353976081,1740171070034,-1006.19,0.00011778,2]
[353976082,1740171070044,-567.1,0.00011778,2]
[353976083,1740171070055,-1021.87,0.00011778,2]
[353976084,1740171070065,-641.22,0.00011778,2]
[353976085,1740171070075,-500.0,0.00011779,2]
[353976086,1740171070085,-500.0,0.00011779,2]
[353976087,1740171070098,-515.4,0.00011779,2]
[353976088,1740171070108,-545.11,0.00011779,2]
[353976089,1740171070118,-500.0,0.00011779,2]
[353976090,1740171070128,-500.0,0.00011779,2]
[353976091,1740171070138,-500.0,0.00011779,2]
[353976092,1740171070148,-500.0,0.00011779,2]
[353976093,1740171070158,-1213.59,0.00011779,2]
[353976094,1740171070167,-500.0,0.00011779,2]
[353976095,1740171070177,-1530.25,0.00011779,2]
[353976096,1740171070188,-1165.42,0.00011779,2]
[353976097,1740171070197,-500.0,0.00011779,2]
[353976098,1740171070207,-1202.17,0.00011779,2]
[353976099,1740171070216,-980.68,0.00011779,2]
[353976100,1740171070226,-388.485905,0.00011779,2]
[353976101,1740171070235,-787.96,0.00011779,2]
[353976102,1740171070244,-715.35,0.00011779,2]
[353976103,1740171070254,-4732.39,0.00011779,2]
[353976104,1740171070263,-825.04,0.00011779,2]
[353976105,1740171070272,-500.0,0.00011779,2]
[353976106,1740171070282,-781.86,0.00011779,2]
[353976107,1740171070292,-456.75589,0.00011779,2]
[353976108,1740171070302,-968.39,0.00011779,2]
[353976109,1740171070312,-254.7,0.00011779,2]
[353976110,1740171070322,-1024.15,0.00011779,2]
[353976111,1740171070331,-500.0,0.00011779,2]
[353976112,1740171070341,-983.5,0.00011779,2]
[353976113,1740171070351,-641.54,0.00011779,2]
[353976114,1740171070360,-521.8,0.00011779,2]
[353976115,1740171070370,-922.66,0.00011779,2]
[353976116,1740171070379,-1051.72,0.00011779,2]
[353976117,1740171070389,-500.0,0.00011779,2]
[353976118,1740171070398,-960.42,0.00011779,2]
[353976119,1740171070408,-909.2,0.00011779,2]
[353976120,1740171070417,-699.01,0.00011779,2]
[353976121,1740171070427,-1134.55,0.00011779,2]
[353976122,1740171070437,-2042.37,0.00011779,2]
[353976123,1740171070447,-500.0,0.00011779,2]
[353976124,1740171070458,-770.62,0.00011779,2]
[353976125,1740171070468,-833.6,0.00011779,2]
[353976126,1740171070478,-500.0,0.00011779,2]
[353976127,1740171070488,-691.53,0.00011779,2]
[353976128,1740171070498,-1037.34,0.00011779,2]
[353976129,1740171070507,-500.0,0.00011779,2]
[353976130,1740171070517,-500.0,0.00011779,2]
[353976131,1740171070527,-698.57,0.00011779,2]
[353976132,1740171070537,-1368.34,0.00011779,2]
[353976133,1740171070546,-500.0,0.00011779,2]
[353976134,1740171070556,-697.57,0.00011779,2]
[353976135,1740171070566,-500.0,0.00011779,2]
[353976136,1740171070576,-1063.71,0.00011779,2]
[353976137,1740171070585,-1210.76,0.00011779,2]
[353976138,1740171070595,-157.466662,0.00011779,2]
[353976139,1740171070605,-916.99,0.00011779,2]
[353976140,1740171070615,-737.32,0.00011779,2]
[353976141,1740171070625,-240.14478002,0.00011779,2]
[353976142,1740171070646,-500.0,0.00011123,2]
[353976143,1740171070728,-100.57301355,0.00011123,2]
[353976144,1740171070738,-201.42698645,0.00011779,2]
[353976145,1740171070751,-58.42823353,0.00011779,2]
[353976146,1740171070761,-893.40754041,0.00011779,2]
[353976147,1740171070772,-221.56245959,0.00011779,2]
[353976148,1740171070782,-500.0,0.00011779,2]
[353976149,1740171070792,-841.42,0.00011779,2]
[353976150,1740171070802,-467.80263364,0.00011779,2]
[353976151,1740171070821,-325.95661418,0.00011039,2]
[353976152,1740171070832,-174.04338582,0.00011039,2]
[353976153,1740171070842,-60.8812547,0.00011779,2]
[353976154,1740171070851,-321.34810896,0.00011779,2]
[353976155,1740171070863,-431.885,0.00011779,2]
[353976156,1740171070885,-405.98312874,0.00011204,2]
[353976157,1740171070897,-94.01687126,0.00011204,2]
[353976158,1740171070906,-1331.95689104,0.00011779,2]
[353976159,1740171070916,-500.0,0.00011779,2]
[353976160,1740171070925,-1025.17,0.00011779,2]
[353976161,1740171070935,-500.0,0.00011779,2]
[353976162,1740171070944,-1196.63066508,0.00011779,2]
[353976163,1740171641146,485.84,8.219e-05,2]
[353976164,1740171704766,154.48,8.767e-05,2]
[353976166,1740171940670,-550.0,0.0001,2]
[353976167,1740171940693,-250.0,0.00010124,2]
[353976168,1740171944214,-4.19,0.00010124,2]
[353976169,1740171944238,-327.75,0.00010139,2]
[353976170,1740171944260,-468.06,0.0001028,2]
[353976171,1740171954265,-531.94,0.0001028,2]
[353976172,1740171954288,-165.83,0.00010443,2]
[353976173,1740171954312,-2.23,0.00010482,2]
[353976186,1740172232127,-289.03,9.982e-05,2]
[353976187,1740172232137,-167.09,0.00010252,2]
[353976188,1740172232147,-483.61,0.00010482,2]
[353976189,1740172232157,-150.0,0.00010504,2]
[353976190,1740172232167,-150.0,0.00010504,2]
[353976191,1740172232176,-150.0,0.00010504,2]
[353976192,1740172232185,-150.0,0.00010504,2]
[353976193,1740172232195,-181.19,0.00010564,2]
[353976194,1740172232204,-150.0,0.00010621,2]
[353976195,1740172232214,-509.43,0.00010634,2]
[353976196,1740172232223,-201.29657453,0.00010638,2]
[353976197,1740172232232,-150.0,0.00010738,2]
[353976198,1740172232241,-200.0,0.000108,3]
[353976199,1740172232251,-4932.6692,0.00010838,2]
[353976200,1740172232260,-201.29657453,0.00010839,2]
[353976201,1740172232270,-300.0,0.00010851,2]
[353976202,1740172232279,-1300.0,0.00010852,2]
[353976203,1740172232288,-150.0,0.00010854,2]
[353976204,1740172232297,-150.0,0.00010893,2]
[353976205,1740172232307,-500.0,0.000109,3]
[353976206,1740172232316,-150.0,0.00010937,2]
[353976207,1740172232326,-163.30428927,0.00010938,2]
[353976208,1740172232335,-1397.1313,0.00010938,2]
[353976209,1740172232344,-724.2106,0.00010938,2]
[353976210,1740172232353,-312.9035,0.00010938,2]
[353976211,1740172232363,-31057.1881,0.00010938,2]
[353976212,1740172232373,-1342.9371,0.00010938,2]
[353976213,1740172232382,-1567.8337,0.00010938,2]
[353976214,1740172232393,-348.8790617,0.00010939,2]
[353976215,1740172232415,-651.1209383,0.00010939,2]
[353976216,1740172232424,-738.3979,0.00010939,2]
[353976217,1740172232435,-2769.95553177,0.00010939,2]
[353976218,1740172232446,-7937.41610319,0.00010939,2]
[353976219,1740172232457,-691.94858545,0.00010939,2]
[353976220,1740172232499,-4932.0,0.00010939,2]
[353976221,1740172232510,-282.7525456,0.00010939,2]
[353976222,1740172232521,-5008.0021072,0.00010939,2]
[353976223,1740172232532,-2530.0,0.00010939,2]
[353976224,1740172232542,-12139.44302679,0.00010939,2]
[353976225,1740172232551,-500.0,0.00010939,2]
[353976226,1740172232561,-11125.55697321,0.00010939,2]
[353976227,1740172232572,-2121.75543706,0.00010939,2]
[353976229,1740172232607,-312.58508233,0.00010939,2]
[353976230,1740172232618,-1591.67605475,0.00010939,2]
[353976231,1740172232630,-1543.87103547,0.00010939,2]
[353976233,1740172232640,-1317.49999995,0.00010939,2]
[353976239,1740172238111,-4435.02763417,0.00010939,2]
[353976240,1740172238123,-4757.45,0.00010939,2]
[353976241,1740172238134,-4933.24906144,0.00010939,2]
[353976242,1740172238145,-40279.31084032,0.00010939,2]
[353976243,1740172238171,-3931.016471,0.00010939,2]
[353976244,1740172238182,-9403.2043103,0.00010939,2]
[353976245,1740172238191,-5000.0,0.00010939,2]
[353976246,1740172238201,-6565.0076774,0.0001094,2]
[353976247,1740172238213,-611.26363651,0.0001094,2]
[353976248,1740172238224,-3438.95288609,0.0001094,2]
[353976249,1740172238233,-502.31,0.00010958,2]
[353976250,1740172238243,-492.15,0.00010958,2]
[353976251,1740172238252,-500.33,0.00010958,2]